Cogmind - Beta 16.1 @@@ ROGUE MODE // 2026.03.04 @ 21:19:06 Player: lrcTempest Result: Self-destructed Performance ------------- Evolutions (5) 2500 Regions Visited (9) 1800 Robots Destroyed (243) 1215 Value Destroyed (7862) 7862 Prototype IDs (15) 300 Alien Tech Used (0) 0 Bonus (692) 692 TOTAL SCORE: 14369 Bonus ------- High Alert Combat Kills 352 Follower Combat Kills 551 Friendly Fire -211 Cogmind --------- Core Integrity 754/1000 Matter 15/300 Energy 3/265 System Corruption 21% Temperature Cool (0) Movement Hovering (68) Location -5/Factory Parts ------- > --- POWER (1) -------- Improved Ion Engine > --- PROPULSION (6) --- Combat Airjet Combat Airjet Combat Airjet Combat Airjet Combat Airjet > --- UTILITY (7) ------ Experimental Heat Sink Large Storage Unit Advanced Signal Interpreter Advanced Targeting Computer Improved Medium Armor Plating Improved Dynamic Insulation System > --- WEAPON (3) ------- Hypervelocity Gauss Rifle Powered Hammer > --- INVENTORY (15) --- Experimental Heat Sink Long-range Tractor Beam Cooled Pulse Rifle Plasma Rifle Long-range Proton Cannon Cooled Plasma Cannon Hypervelocity Gauss Rifle Hypervelocity Gauss Rifle Improved Heavy Machine Gun KE Penetrator Mini Smartbomb Launcher Mini Smartbomb Launcher Plasma Cutter Peak State ------------ > --- POWER ------------ Light Angular Momentum Engine > --- PROPULSION ------- Combat Airjet Combat Airjet Combat Airjet Combat Airjet Combat Airjet Linear Gravjet > --- UTILITY ---------- Experimental Heat Sink Large Storage Unit Experimental Sensor Array Advanced Signal Interpreter Advanced Targeting Computer Improved Medium Armor Plating Improved Medium Armor Plating > --- WEAPON ----------- Improved Heavy Machine Gun Improved Heavy Machine Gun Mini Smartbomb Launcher > --- INVENTORY -------- Improved Ion Engine Advanced Heat Sink Experimental Heat Sink Long-range Tractor Beam Cooled Pulse Rifle Plasma Rifle Cooled Plasma Cannon Hypervelocity Gauss Rifle Hypervelocity Gauss Rifle Hypervelocity Gauss Rifle KE Penetrator Mini Smartbomb Launcher Mini Smartbomb Launcher Plasma Cutter Powered Hammer [Rating: 95] Favorites ----------- Power Improved Deuterium Engine Engine Improved Deuterium Engine Power Core Neutrino Core Propulsion Light Treads Treads Light Treads Leg Aluminum Leg Wheel Armored Huge Wheel Hover Unit Combat Airjet Utility Improved Heat Sink Device Improved Heat Sink Storage Large Storage Unit Processor Advanced Targeting Computer Hackware Hacking Suite Protection Hardened Light Armor Plating Weapon Improved Heavy Machine Gun Energy Gun Gatling Laser Energy Cannon Cooled Plasma Cannon Ballistic Gun Improved Heavy Machine Gun Ballistic Cannon Improved Light Cannon Launcher Mini Smartbomb Launcher Special Weapon Plasma Cutter Impact Weapon Powered Hammer Build | -11 -10 -10 -9 -9 -9 -7 -6 -6 -5 ------- Run | Yrd Mat Min Mat Sto Rec Fac Fac Ext Fac Slots Evolved 10 | . . . 2 . . 4 2 . 2 Power . | . . . . . . . . . . Propulsion 4 | . . . 1 . . 1 . . 2 Utility 5 | . . . 1 . . 3 1 . . Weapon 1 | . . . . . . . 1 . . Parts Attached 189 | 6 12 4 20 27 . 49 29 16 26 Power 15 | 1 3 . 1 2 . 3 2 2 1 Engine 11 | 1 2 . 1 2 . 2 1 1 1 Core 4 | . 1 . . . . 1 1 1 . Reactor . | . . . . . . . . . . Propulsion 53 | 2 1 2 4 6 . 16 6 6 10 Treads 25 | . . . . 4 . 10 4 6 1 Leg 13 | 2 1 2 4 2 . . 1 . 1 Wheel 9 | . . . . . . 6 1 . 2 Hover 6 | . . . . . . . . . 6 Flight . | . . . . . . . . . . Utility 60 | 1 4 . 7 4 . 18 13 4 9 Device 27 | . . . 4 1 . 7 7 3 5 Storage 7 | 1 1 . . . . 4 . . 1 Processor 4 | . . . . . . 2 1 1 . Hackware 2 | . . . . . . . 2 . . Protection 20 | . 3 . 3 3 . 5 3 . 3 Artifact . | . . . . . . . . . . Weapon 61 | 2 4 2 8 15 . 12 8 4 6 Energy Gun 18 | . 3 1 2 1 . 5 4 2 . Energy Cannon 1 | . . . . 1 . . . . . Ballistic Gun 27 | 2 1 1 5 6 . 3 4 1 4 Ballistic Cannon 6 | . . . . 4 . 2 . . . Launcher 4 | . . . 1 1 . . . . 2 Special Weapon 2 | . . . . 1 . . . 1 . Impact Weapon 3 | . . . . 1 . 2 . . . Slashing Weapon . | . . . . . . . . . . Piercing Weapon . | . . . . . . . . . . Special Melee Weapon . | . . . . . . . . . . Unidentified Prototypes 13 | . . . 1 4 . 4 1 . 3 Parts Lost 47 | . 3 . 2 6 . 15 11 3 7 Power 4 | . 1 . . . . . 1 1 1 Propulsion 13 | . . . . 3 . 6 2 . 2 Utility 19 | . 1 . 1 3 . 6 4 1 3 Weapon 11 | . 1 . 1 . . 3 4 1 1 Highest Loss Streak 9 | . 2 . 2 3 . 9 7 2 5 To Critical Strikes . | . . . . . . . . . . Average Backups 17 | 2 12 14 14 14 15 14 22 23 19 Power 1 | . . 1 . 1 1 1 1 1 1 Propulsion 4 | . 4 5 2 1 4 1 8 10 4 Utility 3 | . 3 3 2 2 4 4 3 3 3 Weapon 6 | . 3 5 7 8 5 5 7 6 10 Tool/Special . | . . . . . . . . . . Unused Backups 41 | . 1 4 8 7 . 5 2 3 11 Power 3 | . . . . 2 . . . . 1 Propulsion 7 | . 1 . 1 1 . 1 . 1 2 Utility 10 | . . 2 2 . . 2 1 1 2 Weapon 20 | . . 2 4 4 . 2 1 1 6 Tool/Special 1 | . . . 1 . . . . . . Average Slot Usage (%) 94 | . 99 100 97 92 100 93 88 96 95 Engine 6 | . 11 14 11 10 11 5 4 . 3 Core 1 | . 2 . . . . 1 1 5 1 Treads 12 | . . . . 16 33 18 8 22 10 Leg 8 | . 28 28 33 16 . . . . . Wheel 3 | . . . . . . 7 8 1 2 Hover 1 | . . . . . . . . . 16 Device 11 | . . . 7 3 . 14 18 21 9 Storage 8 | . 14 14 11 11 11 7 6 6 5 Processor 7 | . . . . . . 5 13 16 14 Protection 10 | . 13 14 12 11 22 14 5 . 8 Energy Gun 6 | . 10 14 7 . . 4 12 3 . Ballistic Gun 9 | . 16 14 14 15 . 2 6 15 12 Ballistic Cannon 3 | . . . . 4 22 7 . . . Peak Build Rating 95 | 6 10 14 18 20 18 54 74 74 95 Average Rating 40 | 4 8 9 16 16 18 34 63 66 85 On Entrance 27 | . 6 8 14 17 18 18 54 64 74 Avg Prop Armor Cover (%) 11 | . . . . 5 . 10 12 11 13 Naked Turns . | . . . . . . . . . . Heaviest Build 123 | 11 31 32 36 46 46 107 114 115 123 Greatest Support 114 | 20 20 20 38 60 60 80 88 114 112 Greatest Overweight (x) 4 | . 1 1 1 1 . 4 3 4 4 Average Overweight (x) 1 | . . 1 . . . 1 1 1 . Largest Inventory Capacity 25 | 8 15 15 15 15 15 25 25 25 25 Average Capacity 18 | 7 13 15 15 15 15 15 25 25 19 Most Carried 25 | 5 15 15 15 15 15 25 25 25 25 Average Carried 17 | 1 12 14 14 14 15 14 23 24 19 Final Capacity 25 | 8 15 15 15 15 15 25 25 25 15 Final Carried 25 | 2 15 15 15 15 15 25 25 25 13 Class Distribution -------------------- 32% | Scavenger-Mutant 30% | Mutant 23% | Scavenger-Gunner 7% | Scavenger-Skirmisher Dominant Class ---------------- Mutant | -10/Materials Mutant | -10/Mines Scavenger-Mutant | -9/Materials Mutant | -9/Storage Mutant | -9/Recycling Scavenger-Mutant | -7/Factory Scavenger-Gunner | -6/Factory Scavenger-Gunner | -6/Extension Scavenger-Gunner | -5/Factory Resources | -11 -10 -10 -9 -9 -9 -7 -6 -6 -5 ----------- Run | Yrd Mat Min Mat Sto Rec Fac Fac Ext Fac Matter Collected 6857 | 256 283 15 415 735 109 1636 968 1071 1369 Remotely 579 | . . . . . . . . 478 101 Salvage Created 10257 | . 587 60 554 1110 133 1767 2641 1810 1595 Parts 470 | . 46 5 46 56 8 90 103 53 63 Haulers Intercepted 22 | . 2 . 2 3 . 4 2 6 3 Recyclers Shooed 16 | . . . . 4 . 2 5 3 2 Parts Field Recycled . | . . . . . . . . . . Retrieved Matter . | . . . . . . . . . . Parts Self-Destructed . | . . . . . . . . . . Prevented . | . . . . . . . . . . Parts Restored . | . . . . . . . . . . Kills | -11 -10 -10 -9 -9 -9 -7 -6 -6 -5 ------- Run | Yrd Mat Min Mat Sto Rec Fac Fac Ext Fac Combat Hostiles Destroyed 160 | . 15 5 17 12 3 31 35 18 24 Melee 1 | . . . . . . . 1 . . Guns 111 | . 15 5 10 9 . 8 32 17 15 Cannons 14 | . . . . . 3 11 . . . AOE 29 | . . . 7 3 . 10 . . 9 Classes Destroyed 16 | . 4 1 3 2 1 3 1 . 1 Worker 16 | . . . . 2 . 8 4 1 1 Builder 6 | . 1 . 1 . . . 4 . . Tunneler 3 | . . . . . . . 3 . . Hauler 22 | . 2 . 2 3 . 4 2 6 3 Recycler 22 | . . . . 4 . 8 5 3 2 Operator 2 | . . . . . . 1 1 . . Watcher 13 | . . . 2 2 . 2 2 3 2 Swarmer 40 | . 6 3 9 . . 5 7 3 7 Saboteur 2 | . . . . . . . . . 2 Grunt 63 | . 9 . 3 6 . 15 12 10 8 Brawler 4 | . . . . . . 1 2 . 1 Duelist 6 | . . . 1 . . 1 4 . . Sentry 23 | . . . 4 6 1 4 4 4 . Hunter 3 | . . . . . . 1 . 1 1 Programmer 17 | . . . . . 2 4 6 . 5 Assembled 2 | . . 2 . . . . . . . Thug 1 | . . . . . . 1 . . . Best Kill Streak 11 | . 4 3 7 5 2 11 9 8 5 Combat Bots Only 7 | . 4 3 6 3 2 5 6 7 5 Max Kills in Single Turn 4 | . 1 1 3 3 1 3 4 2 4 Gunslinging . | . . . . . . . . . . Exploded 4 | . . . 3 2 . 2 . . 4 Melee 1 | . . . . . . . 1 . . Uniques/NPCs Destroyed . | . . . . . . . . . . Combat | -11 -10 -10 -9 -9 -9 -7 -6 -6 -5 -------- Run | Yrd Mat Min Mat Sto Rec Fac Fac Ext Fac Hostile Shots Fired 1274 | . 73 14 54 93 5 315 297 201 222 Missed 430 | . 14 2 19 27 . 122 88 77 81 Hits 844 | . 59 12 35 66 5 193 209 124 141 Melee 28 | . . . 1 . . 6 21 . . Projectile 816 | . 59 12 34 66 5 187 188 124 141 Critical Strikes 35 | . . . 1 4 . 9 11 1 9 Part Disruptions 2 | . . . . . . 1 . . 1 Damage Taken 12154 | . 613 117 468 874 72 2659 3113 1465 2773 Core 1379 | . 65 24 74 141 . 183 523 123 246 Absorbed by Shields 330 | . . . . 44 . 226 60 . . Redirected to Shielding 52 | . . . 15 37 . . . . . Ignored by Resistances 192 | . . . . . . . 192 . . Regen/Repaired (Parts) 46 | . . . . . . . 46 . . Core Remaining (%) 61 | 100 . 64 . . 46 73 . 24 . Volleys Fired 623 | 2 56 13 42 68 5 123 127 97 90 Largest 3 | 2 2 2 2 2 2 2 3 3 3 Hottest 223 | 40 60 60 96 60 66 165 223 175 80 Shots Fired 1450 | 4 110 26 79 133 11 229 374 275 209 Gun 1261 | 4 110 26 73 122 . 87 374 274 191 Cannon 144 | . . . . 6 11 127 . . . Launcher 44 | . . . 6 5 . 15 . . 18 Special 1 | . . . . . . . . 1 . Kinetic 974 | 4 76 13 42 128 11 170 126 213 191 Thermal 431 | . 34 13 31 . . 44 248 61 . Explosive 39 | . . . 6 . . 15 . . 18 Electromagnetic 5 | . . . . 5 . . . . . Robot Hit Streak 29 | 1 10 4 10 12 4 14 29 17 23 Robot Miss Streak 10 | 2 3 4 5 3 1 4 10 3 6 Penetration Max 1 | . . . . . . 1 . . 1 Secondary Targets 17 | . 1 2 . . . . 6 5 3 Max Gunslinging Chain 1 | . 1 1 . . . . 1 1 1 Shots Hit Robots 991 | 1 72 11 43 91 6 144 273 211 139 Core Hits 558 | . 31 7 28 36 3 108 156 100 89 Critical Kills 9 | . 1 . 1 . . . . . 7 Critical Parts Destroyed 12 | . . . . . . 2 1 . 9 Critical Strikes 50 | . 1 . 4 . 1 8 20 . 16 Burn 22 | . . . 3 . . 1 18 . . Destroy 17 | . 1 . 1 . . . . . 15 Blast 6 | . . . . . 1 5 . . . Smash 5 | . . . . . . 2 2 . 1 Melee Attacks 25 | . . . . 1 . 12 8 . 4 Impact 25 | . . . . 1 . 12 8 . 4 Slashing . | . . . . . . . . . . Piercing . | . . . . . . . . . . Sneak Attacks 6 | . . . . . . 5 . . 1 Combat Hostiles . | . . . . . . . . . . Follow-up Attacks . | . . . . . . . . . . Damage Inflicted 26227 | 12 804 115 1307 1915 209 5157 6359 5044 5305 Guns 17736 | 12 804 115 756 1460 . 1346 5456 5044 2743 Cannons 1831 | . . . . 35 209 1587 . . . Explosions 5642 | . . . 551 420 . 1647 556 . 2468 Melee 1014 | . . . . . . 577 343 . 94 Ramming 4 | . . . . . . . 4 . . Kinetic 13036 | 12 579 31 411 1495 209 2095 1898 3563 2743 Thermal 7090 | . 225 84 345 129 . 1161 3558 1481 107 Explosive 4481 | . . . 551 . . 1324 556 . 2050 Electromagnetic 602 | . . . . 291 . . . . 311 Impact 1014 | . . . . . . 577 343 . 94 Slashing . | . . . . . . . . . . Piercing . | . . . . . . . . . . Highest Corruption 21 | . . . . 3 3 10 2 2 21 Average Corruption 4 | . . . . 2 3 6 1 2 11 Corruption Purged . | . . . . . . . . . . Corruption Blocked . | . . . . . . . . . . Effects 136 | . . . . 3 10 43 18 23 39 Message Errors 39 | . . . . 1 2 9 6 9 12 Matter Fused 32 | . . . . . 3 11 4 6 8 Heat Flow Errors 14 | . . . . 1 2 5 . 3 3 Energy Discharges 13 | . . . . . . 4 3 2 4 Parts Fused 2 | . . . . . . 2 . . . Data Loss (minor) 11 | . . . . . 2 4 3 1 1 Data Loss (major) 5 | . . . . 1 . 1 . 1 2 Misfires 6 | . . . . . 1 4 1 . . Alerts 3 | . . . . . . 2 . . 1 Misdirections 4 | . . . . . . . . . 4 Weapon Failures 7 | . . . . . . 1 1 1 4 Overload Shots . | . . . . . . . . . . Overflow Damage 707 | . . . 48 13 18 358 152 . 118 Projectiles 18 | . . . . . 18 . . . . Explosions 314 | . . . 48 13 . 101 98 . 54 Melee 375 | . . . . . . 257 54 . 64 Knockbacks 22 | . . . . . 1 21 . . . Impact 4 | . . . . . . 4 . . . Kinetic 16 | . . . . . 1 15 . . . Secondary 2 | . . . . . . 2 . . . Self-Inflicted Damage 180 | . . . 14 . . 164 2 . . Shots 4 | . . . 1 . . 3 . . . Rammed 1 | . . . . . . . 1 . . Targets Rammed 1 | . . . . . . . 1 . . Kicked . | . . . . . . . . . . Crushed . | . . . . . . . . . . Highest Temperature 378 | . 117 79 239 176 148 378 278 242 245 Average Temperature 63 | . 29 36 95 31 48 106 47 70 85 Received Heat Transfer 3221 | . 225 . 105 390 9 845 734 490 423 Effects 3 | . . . 1 . . 1 . . 1 Energy Bleed 2 | . . . 1 . . . . . 1 Interference 1 | . . . . . . 1 . . . Siege Activations . | . . . . . . . . . . Martial Activations . | . . . . . . . . . . Shielding Activations . | . . . . . . . . . . Robots Disrupted 1 | . . . . . . . . . 1 Combat Hostiles 1 | . . . . . . . . . 1 Robots Corrupted 7 | . . . . . . 5 1 . 1 Combat Hostiles 2 | . . . . . . 1 1 . . Parts Fried 7 | . . . . 2 . 3 1 . 1 Impact Corruptions 13 | . . . . . . 7 3 . 3 Robots Melted 3 | . . . . . . 1 1 1 . Combat Hostiles 3 | . . . . . . 1 1 1 . Parts Melted 36 | . . 1 1 . . 4 27 3 . Heat Transferred 16968 | . 500 175 999 150 . 2150 9544 3400 50 Parts Sabotaged . | . . . . . . . . . . Parts Stolen . | . . . . . . . . . . Parts Stripped . | . . . . . . . . . . Power Chain Reactions 2 | . . . . 2 . . . . . Alert | -11 -10 -10 -9 -9 -9 -7 -6 -6 -5 ------- Run | Yrd Mat Min Mat Sto Rec Fac Fac Ext Fac Maximum Alert Level 3 | . . . 1 1 . 2 2 2 3 Low Security (%) 47 | 100 100 100 41 49 100 53 29 . 18 Level 1 38 | . . . 58 50 . 42 14 95 47 Level 2 13 | . . . . . . 3 55 4 22 Level 3 . | . . . . . . . . . 11 Level 4 . | . . . . . . . . . . Level 5 . | . . . . . . . . . . High Security . | . . . . . . . . . . Max Security . | . . . . . . . . . . Peak Influence 976 | . 144 71 316 280 111 418 676 435 976 Initial 326 | . . 1 . 118 74 27 203 326 186 Average 225 | . 69 7 176 187 49 178 405 297 400 Influence Increases 6718 | . 437 70 532 857 165 1368 1175 874 1240 Destroy 0b10 Robot/C 3560 | . 300 60 340 420 140 620 700 500 480 Destroy 0b10 Robot/NC 420 | . 15 . 25 55 . 115 105 65 40 Destroy Leader 776 | . 64 10 98 150 . 150 148 76 80 Allied During Kill 275 | . . . . 80 24 2 . 169 . Successful Hack 100 | . 41 . . 11 . 16 4 28 . Disable Machine 690 | . . . 15 45 . 240 105 15 270 Destroy Structure 387 | . 2 . 54 6 1 105 23 6 190 Partial Spotted 15 | . . . . . . 15 . . . Lose Combat Pursuer 495 | . 15 . . 90 . 105 90 15 180 Influence Decreases 5742 | . 433 74 250 947 292 1017 924 1161 644 Entered New Map 1071 | . . 3 . 164 118 38 213 341 194 Time Decay 3475 | . 393 71 230 404 174 672 601 550 380 Lost Part 470 | . 30 . 20 60 . 150 110 30 70 Lost Ally 426 | . 10 . . 169 . 7 . 240 . Purge Threat 300 | . . . . 150 . 150 . . . Squads Dispatched 34 | . 3 . 1 6 . 9 7 3 5 Investigation 3 | . 2 . . . . 1 . . . Extermination 9 | . . . . . . 4 4 . 1 Reinforcement 15 | . 1 . 1 1 . 3 2 3 4 Assault 3 | . . . . 2 . . 1 . . Garrison 4 | . . . . 3 . 1 . . . Intercept . | . . . . . . . . . . Searches Triggered . | . . . . . . . . . . Construction Impeded 3 | . . . . . . . . 2 1 Haulers Reinforced 5 | . . . . . . 1 2 . 2 Active Scanning Responses . | . . . . . . . . . . Cargo Convoy Interrupts 1 | . . . . . . . . . 1 Stealth | -11 -10 -10 -9 -9 -9 -7 -6 -6 -5 --------- Run | Yrd Mat Min Mat Sto Rec Fac Fac Ext Fac Distress Signals 14 | . 1 . 2 4 . 2 3 . 2 Communications Jammed . | . . . . . . . . . . Distress Signals . | . . . . . . . . . . Times Spotted 270 | . 25 4 22 20 5 53 52 42 47 Peak Tracking Total 14 | . 4 2 9 5 3 6 7 5 14 Tactical Retreats 20 | . 1 . . 5 . 2 4 1 7 Traps | -11 -10 -10 -9 -9 -9 -7 -6 -6 -5 ------- Run | Yrd Mat Min Mat Sto Rec Fac Fac Ext Fac Traps Triggered 11 | . . . . 3 . 2 2 3 1 Indirectly . | . . . . . . . . . . Trap Hack Attempts . | . . . . . . . . . . Triggered . | . . . . . . . . . . Disarmed . | . . . . . . . . . . Reprogrammed . | . . . . . . . . . . Reused . | . . . . . . . . . . Traps Extracted . | . . . . . . . . . . Installed . | . . . . . . . . . . Triggered . | . . . . . . . . . . Machines | -11 -10 -10 -9 -9 -9 -7 -6 -6 -5 ---------- Run | Yrd Mat Min Mat Sto Rec Fac Fac Ext Fac Machines Disabled 46 | . . . 1 3 . 16 7 1 18 Max in Single Turn 5 | . . . 1 1 . 5 4 1 4 Machines Repaired . | . . . . . . . . . . Machines Dismantled 1 | . . . . 1 . . . . . Machines Sabotaged . | . . . . . . . . . . Overloaded Fab Kills . | . . . . . . . . . . Hacking | -11 -10 -10 -9 -9 -9 -7 -6 -6 -5 --------- Run | Yrd Mat Min Mat Sto Rec Fac Fac Ext Fac Machines Accessed 34 | . 5 1 3 5 . 9 4 5 2 Terminals 24 | . 5 . 2 4 . 5 3 5 . Fabricators 2 | . . . . . . 2 . . . Repair Stations 1 | . . . . . . . 1 . . Recycling Units 1 | . . . . . . . . . 1 Scanalyzers 3 | . . . 1 . . 1 . . 1 Garrison Access 2 | . . . . 1 . 1 . . . Total Hacks 78 | . 19 1 6 12 . 18 8 10 4 Successful 38 | . 12 1 4 5 . 8 3 4 1 Failed 38 | . 7 . 1 7 . 10 5 6 2 Catastrophic 7 | . 1 . . 1 . 2 1 2 . Database Lockouts 2 | . . . 1 . . . . . 1 Manual 26 | . 14 . 3 5 . 2 1 1 . Terminals 62 | . 19 . 5 10 . 12 6 10 . Fabricators 3 | . . . . . . 3 . . . Repair Stations 2 | . . . . . . . 2 . . Recycling Units 1 | . . . . . . . . . 1 Scanalyzers 6 | . . . 1 . . 2 . . 3 Garrison Access 3 | . . . . 2 . 1 . . . Terminal Hacks 27 | . 9 1 3 5 . 4 1 4 . Robot Analysis 8 | . 4 . 1 1 . 1 1 . . Prototype ID Bank 1 | . . . 1 . . . . . . Open Door 6 | . . 1 . 1 . . . 4 . Branch Access Points 2 | . . . . 1 . 1 . . . Terminal Index 2 | . 1 . . . . 1 . . . Unreport Threat 2 | . . . . 1 . 1 . . . Locate Traps 1 | . 1 . . . . . . . . Hauler Manifests 3 | . 1 . 1 1 . . . . . Zone Layout 2 | . 2 . . . . . . . . Fabricator Hacks 2 | . . . . . . 2 . . . Network Status 2 | . . . . . . 2 . . . Repair Station Hacks 2 | . . . . . . . 2 . . Scan Component 1 | . . . . . . . 1 . . Repair 1 | . . . . . . . 1 . . Recycling Unit Hacks . | . . . . . . . . . . Scanalyzer 3 | . . . . . . 2 . . 1 Retrieve Study 3 | . . . . . . 2 . . 1 Garrison Access Hacks . | . . . . . . . . . . Unauthorized Hacks 4 | . 3 . 1 . . . . . . Terminals 4 | . 3 . 1 . . . . . . Assimilate 1 | . 1 . . . . . . . . Botnet 2 | . 1 . 1 . . . . . . Disrupt 1 | . 1 . . . . . . . . Fabricators . | . . . . . . . . . . Repair Stations . | . . . . . . . . . . Recycling Units . | . . . . . . . . . . Scanalyzers . | . . . . . . . . . . Garrison Access . | . . . . . . . . . . Data Cores Recovered 1 | . . . . . . . 1 . . Used . | . . . . . . . . . . Hacking Detections 25 | . 5 . 2 5 . 5 3 4 1 Full Trace Events 4 | . 2 . . 2 . . . . . Feedback Events . | . . . . . . . . . . Feedback Blocked . | . . . . . . . . . . Robot Schematics Acquired . | . . . . . . . . . . Robots Built . | . . . . . . . . . . Authchips . | . . . . . . . . . . Time . | . . . . . . . . . . Total Robot Build Rating . | . . . . . . . . . . Part Schematics Acquired . | . . . . . . . . . . Parts Built . | . . . . . . . . . . Authchips . | . . . . . . . . . . Time . | . . . . . . . . . . Total Part Build Rating . | . . . . . . . . . . Part Studies Acquired 3 | . . . . . . 2 . . 1 Parts Repaired 1 | . . . . . . . 1 . . Time 50 | . . . . . . . 50 . . Parts Recycled . | . . . . . . . . . . Recycled Matter . | . . . . . . . . . . Retrieved Matter . | . . . . . . . . . . Retrieved Components . | . . . . . . . . . . Parts Scanalyzed . | . . . . . . . . . . Part Schematics Acquired . | . . . . . . . . . . Parts Damaged . | . . . . . . . . . . Bothacking | -11 -10 -10 -9 -9 -9 -7 -6 -6 -5 ------------ Run | Yrd Mat Min Mat Sto Rec Fac Fac Ext Fac Used RIF Installer . | . . . . . . . . . . Robots Hacked . | . . . . . . . . . . Non-combat . | . . . . . . . . . . Combat . | . . . . . . . . . . Robot Hacks Applied . | . . . . . . . . . . Relay Couplers Released 3 | . . . . . . . 3 . . Programmers 3 | . . . . . . . 3 . . Fabnet Peak Effective % . | . . . . . . . . . . Robots Rewired 6 | . . . . . . . . 6 . Allies Hacked . | . . . . . . . . . . Hacks Repelled . | . . . . . . . . . . Allies | -11 -10 -10 -9 -9 -9 -7 -6 -6 -5 -------- Run | Yrd Mat Min Mat Sto Rec Fac Fac Ext Fac Total Allies 25 | . 1 . . 12 . . . 12 . Largest Group 10 | . 1 . . 10 3 2 . 8 . Highest-Rated Group 234 | . 10 . . 118 70 39 . 234 . Highest-Rated Ally 39 | . 10 . . 31 31 31 . 39 . Total Orders . | . . . . . . . . . . Ally Attacks 142 | . . . . 41 18 6 . 77 . Total Damage 2049 | . . . . 419 316 105 . 1209 . Kills 20 | . . . . 9 4 . . 7 . Allies Corrupted . | . . . . . . . . . . Allies Melted . | . . . . . . . . . . Intel | -11 -10 -10 -9 -9 -9 -7 -6 -6 -5 ------- Run | Yrd Mat Min Mat Sto Rec Fac Fac Ext Fac Active Infowar (turns) 1413 | . . . . . . 3 312 815 283 Sensors 544 | . . . . . . 3 258 . 283 Terrain 861 | . . . . . . . 54 807 . Structural 976 | . . . . . . . 161 815 . Robot Analysis Total 8 | . 4 . 1 1 . 1 1 . . Derelict Logs Recovered . | . . . . . . . . . . Drone Launches 1 | . . . . . . . . 1 . Drone Recoveries 1 | . . . . . . . . 1 . Exploration | -11 -10 -10 -9 -9 -9 -7 -6 -6 -5 ------------- Run | Yrd Mat Min Mat Sto Rec Fac Fac Ext Fac Turns Passed 10995 | 60 1068 747 683 975 433 2610 1924 1596 899 Spaces Moved 5508 | 38 486 309 354 402 252 1479 971 601 616 Core 10 | 10 . . . . . . . . . Treads 1470 | . . . . 243 252 529 36 408 2 Legs 1336 | 28 486 309 354 159 . . . . . Wheels 2253 | . . . . . . 950 935 193 175 Hover 439 | . . . . . . . . . 439 Flight . | . . . . . . . . . . Fastest Speed 50 | 50 120 190 120 120 160 90 105 135 57 Average Speed 140 | 101 172 190 137 161 160 129 123 187 83 Slowest Speed 320 | 120 190 190 190 240 160 320 210 230 240 Overloaded Moves . | . . . . . . . . . . Propulsion Burnouts . | . . . . . . . . . . Robots Hopped . | . . . . . . . . . . Potential Cave-ins . | . . . . . . . . . . Cave-ins Triggered . | . . . . . . . . . . Exploration Rate (%) 48 | 4 80 74 39 70 71 36 27 67 16 Regions Visited 9 Branch Regions 4 Pre-discovered Areas . | . . . . . . . . . . Known Exits Taken 3 | . . . . 1 . . 1 1 . Unknown Exits Taken 6 | 1 1 1 1 . 1 1 . . . Scrap Searched 1 | . . 1 . . . . . . . Spaces Dug 29 | . . . . . . 28 . . 1 Terrain Destroyed 300 | . . . 54 2 . 132 19 . 93 Melee 4 | . . . . . . 3 . . 1 Projectile 2 | . . . . . . 1 . . 1 AOE 292 | . . . 54 2 . 128 19 . 89 Terrain Rammed . | . . . . . . . . . . Walls Destroyed . | . . . . . . . . . . Machines Disabled . | . . . . . . . . . . Actions | -11 -10 -10 -9 -9 -9 -7 -6 -6 -5 --------- Run | Yrd Mat Min Mat Sto Rec Fac Fac Ext Fac Total 7539 | 56 614 449 475 580 272 1934 1413 893 853 Wait 647 | 3 30 110 9 26 16 170 189 29 65 Move 5499 | 37 485 308 353 401 251 1478 970 600 616 Hop . | . . . . . . . . . . Pick Up 174 | 8 23 6 19 16 . 39 40 9 14 Fast Attach 45 | . . . 5 10 . 17 2 4 7 Attach 83 | 6 5 . 5 3 . 17 29 5 13 Detach 1 | . . . . . . . 1 . . Swap 125 | . 7 4 17 17 . 43 13 8 16 Drop 164 | . 8 8 25 25 . 35 23 12 28 Fire 623 | 2 56 13 42 68 5 123 127 97 90 Melee 25 | . . . . 1 . 12 8 . 4 Ram 1 | . . . . . . . 1 . . Kick . | . . . . . . . . . . Crush . | . . . . . . . . . . Escape Stasis 27 | . . . . 5 . . 10 12 . Rewire 117 | . . . . . . . . 117 . Trap . | . . . . . . . . . . Miscellaneous 8 | . . . . 8 . . . . . Route ------- -11/Scrapyard -10/Materials (discovered 5 exits: *Mat x2 / *Min x2 / [*Sub]) -10/Mines (discovered 3 exits: *Mat x2 / [*Sub]) -9/Materials (discovered 2 exits: [*Mat] / *Sto) -9/Storage -9/Recycling -7/Factory (discovered 3 exits: *Fac / Low x2) -6/Factory -6/Extension (discovered 2 exits: *Fac / [*Cet]) -5/Factory History --------- Turn | Location | Event 7 | -11/Scrapyard | Discovered new exit (range 16) 61 | -11/Scrapyard | Entered Materials 314 | -10/Materials | Build established: Mutant 445 | -10/Materials | Discovered new exit (range 9) 521 | -10/Materials | Discovered new exit (range 13) 672 | -10/Materials | Discovered new exit (range 6) 868 | -10/Materials | Discovered new exit (range 12) 1086 | -10/Materials | Discovered new exit (range 5) 1129 | -10/Materials | Entered Mines 1130 | -10/Mines | Assembled infested the area 1135 | -10/Mines | Assisted by a Guerilla fighting off Assembled 1140 | -10/Mines | Met a Derelict bent on vengeance 1183 | -10/Mines | Found a damaged Exp. Sensor Array with a note attached 1188 | -10/Mines | Found Prototype Device 1263 | -10/Mines | Discovered new exit (range 12) 1596 | -10/Mines | Received a Rocket Launcher from a helpful Derelict 1709 | -10/Mines | Discovered new exit (range 5) 1751 | -10/Mines | Found a hidden stash of uninstalled traps 1781 | -10/Mines | Discovered new exit (range 16) 1814 | -10/Mines | Met a Derelict who couldn't figure out how to use a Trap Extractor 1876 | -10/Mines | Entered Materials 1876 | -9/Materials | Evolved 2 slots: Propulsion x1, Utility x1 1994 | -9/Materials | Central database locked down 2221 | -9/Materials | Build established: Scavenger-Mutant 2523 | -9/Materials | Discovered new exit (range 16) 2547 | -9/Materials | Discovered new exit (range 9) 2559 | -9/Materials | Entered Storage 2661 | -9/Storage | Garrison activated, responded to threat 2721 | -9/Storage | Lost 3 parts (2n1u) 3026 | -9/Storage | Core integrity fell below 50% 3200 | -9/Storage | Build established: Mutant 3407 | -9/Storage | Identified exit to Recycling 3432 | -9/Storage | Assisted by bots powering up and referring to "LRC-V3" 3469 | -9/Storage | Met a pair of Derelict thieves 3520 | -9/Storage | Used back door to open Recycling access 3528 | -9/Storage | Lost 8 allies 3534 | -9/Storage | Entered Recycling 3534 | -9/Recycling | Accompanied by 3 allies 3535 | -9/Recycling | Met a Zionite searching for Scraptown 3845 | -9/Recycling | P-60 Hacker assimilated allied ZZ-BG7(g) 3941 | -9/Recycling | Discovered new exit (range 15) 3967 | -9/Recycling | Entered Factory 3967 | -7/Factory | Accompanied by 2 allies 3967 | -7/Factory | Evolved 4 slots: Propulsion x1, Utility x3 4176 | -7/Factory | Garrison activated, responded to threat 4265 | -7/Factory | Build established: Scavenger-Mutant 5204 | -7/Factory | Lost 9 parts (3n4u2w) 5808 | -7/Factory | Discovered new exit (range 15) 5959 | -7/Factory | Identified Exp. Sensor Array 6323 | -7/Factory | Identified exit to Lower Caves 6430 | -7/Factory | System corruption reached 10% 6577 | -7/Factory | Entered another Factory area 6577 | -6/Factory | Evolved 2 slots: Utility x1, Weapon x1 6983 | -6/Factory | Build established: Scavenger-Gunner 7358 | -6/Factory | Repaired Adv. Heat Sink 7627 | -6/Factory | First assault squad dispatched 8138 | -6/Factory | Core integrity fell below 50% 8170 | -6/Factory | Lost 7 parts (1p2u4w) 8233 | -6/Factory | Discovered new exit (range 12) 8498 | -6/Factory | Identified exit to Extension 8501 | -6/Factory | Entered Extension 8577 | -6/Extension | Rescued a captive Derelict 8579 | -6/Extension | Rescued a captive Derelict 8615 | -6/Extension | Rescued a captive Derelict 8757 | -6/Extension | Build established: Scavenger-Skirmisher 9085 | -6/Extension | Destroyed 7 combat bots 9120 | -6/Extension | Rescued a captive Derelict 9121 | -6/Extension | Rescued a captive Derelict 9179 | -6/Extension | Lost 4 allies 9359 | -6/Extension | Rescued a captive Derelict 9601 | -6/Extension | Build established: Scavenger-Gunner 9601 | -6/Extension | Disrupted transfer network 9745 | -6/Extension | Spotted B-75 Beast 9769 | -6/Extension | Allies destroyed B-75 Beast 10070 | -6/Extension | Discovered new exit (range 16) 10071 | -6/Extension | Discovered new exit (range 15) 10092 | -6/Extension | Identified exit to Factory 10095 | -6/Extension | Disrupted transfer network 10097 | -6/Extension | Entered Factory 10097 | -5/Factory | Evolved 2 slots: Propulsion x2 10140 | -5/Factory | Central database locked down 10303 | -5/Factory | Found Prototype Launcher 10303 | -5/Factory | Identified Mni. Smartbomb Launcher 10436 | -5/Factory | System corruption reached 10% 10613 | -5/Factory | Found Mni. Smartbomb Launcher 10615 | -5/Factory | Found Mni. Smartbomb Launcher 10915 | -5/Factory | Cargo convoy interrupted 10996 | -5/Factory | Self-destructed Last Messages --------------- 10937_ Exp. Sensor Array destroyed. 10938_ U-05 Engineer lays Concrete. 10939_ Imp. Medium Armor Plating destroyed. 10941_ System corrupted: Energy discharge (-31). 10953_ Linear Gravjet destroyed. 10954_ W-25 Informer sends out distress signal. 10962_ U-05 Engineer lays Concrete. 10962_ Imp. Heavy Machine Gun destroyed. 10964_ U-05 Engineer lays Concrete. 10966_ K-01 Serf destroyed. 10967_ K-01 Serf collects debris. 10968_ U-05 Engineer lays Concrete. 10969_ Lgt. Angular Momentum Engine destroyed. 10969_ U-05 Engineer lays Concrete. 10971_ K-01 Serf collects debris. 10972_ ALERT: Hostiles spotted, dispatching reinforcements to Terminal F004. 10973_ NLWKYRDH7K2R0A%&CRP<0F F EL6P9M5DXVM4 10976_ K-01 Serf destroyed. 10990_